[Event "Polugaevsky Memorial 2019"]
[Site "Samara"]
[Date "2019.07.10"]
[Round "1.9"]
[White "Kombar, Mariya"]
[Black "Gaifullin, Artur"]
[Result "0-1"]
[ECO "B18"]
[WhiteElo "1864"]
[BlackElo "2453"]
[Annotator "ChessBase"]
[PlyCount "168"]
[EventDate "2019.07.10"]
[EventType "swiss"]
[EventCountry "RUS"]
[SourceTitle "playchess.com"]
[Source "ChessBase"]
[SourceQuality "1"]
[TimeControl "5400+30"]

1. e4 {[%emt 0:00:00]} c6 {[%emt 0:00:00]} 2. d4 {[%emt 0:00:00]} d5 {[%emt 0:00:00]} 3. Nc3 {[%emt 0:00:00]} dxe4 {[%emt 0:00:00]} 4. Nxe4 {[%emt 0:00:00]} Bf5 {[%emt 0:00:00]} 5. Ng3 {[%emt 0:00:08]} Bg6 {[%emt 0:00:00]} 6. h4 {[%emt 0:00:28]} h6 {[%emt 0:00:00]} 7. h5 {[%emt 0:00:14]} Bh7 {[%emt 0:00:00]} 8. Nf3 {[%emt 0:00:11]} Nd7 {[%emt 0:00:08]} 9. Bd3 {[%emt 0:00:23]} Bxd3 {[%emt 0:00:06]} 10. Qxd3 {[%emt 0:00:05]} e6 {[%emt 0:00:02]} 11. Bd2 {[%emt 0:00:50]} Ngf6 {[%emt 0:00:06]} 12. Ne4 {[%emt 0:01:20]} Nxe4 {[%emt 0:01:20]} 13. Qxe4 {[%emt 0:00:06]} Nf6 {[%emt 0:00:08]} 14. Qe2 {[%emt 0:00:10]} Qd5 {[%emt 0:01:07]} 15. c4 {[%emt 0:02:53]} Qe4 {[%emt 0:00:29]} 16. Qxe4 {[%emt 0:00:49]} Nxe4 {[%emt 0:00:02]} 17. Be3 {[%emt 0:01:10]} Bb4+ {[%emt 0:00:52]} 18. Ke2 {[%emt 0:02:15]} O-O {[%emt 0:00:12]} 19. Ne5 {[%emt 0:10:31]} f6 {[%emt 0:05:27]} 20. Ng6 {[%emt 0:03:58]} Rfe8 {[%emt 0:00:08]} 21. a3 {[%emt 0:04:15]} Ba5 {[%emt 0:01:15]} 22. b4 {[%emt 0:03:41]} Bc7 {[%emt 0:00:13]} 23. Rac1 {[%emt 0:01:51]} a5 {[%emt 0:01:27]} 24. b5 {[%emt 0:09:56]} a4 {[%emt 0:00:29]} 25. c5 {[%emt 0:05:39]} cxb5 {[%emt 0:01:34]} 26. Kd3 {[%emt 0:01:29]} f5 {[%emt 0:00:26]} 27. Rb1 {[%emt 0:01:22]} Rad8 {[%emt 0:01:40]} 28. Rxb5 {[%emt 0:02:58]} e5 {[%emt 0:00:06]} 29. Rc1 {[%emt 0:19:51]} exd4 {[%emt 0:00:47]} 30. Bxd4 {[%emt 0:00:56]} Nxf2+ {[%emt 0:00:14]} 31. Kc3 {[%emt 0:01:20]} Ne4+ {[%emt 0:00:15]} 32. Kd3 {[%emt 0:02:03]} Rd7 {[%emt 0:03:43]} 33. Rc4 {[%emt 0:08:48]} Bg3 {[%emt 0:08:29]} 34. Kc2 {[%emt 0:04:22]} Bf2 {[%emt 0:03:27]} 35. Rbb4 {[%emt 0:02:08]} Red8 {[%emt 0:01:47]} 36. Bxf2 {[%emt 0:01:46]} Rd2+ {[%emt 0:00:09]} 37. Kb1 {[%emt 0:00:42]} Rxf2 {[%emt 0:00:15]} 38. Rc2 {[%emt 0:00:55]} Rxc2 {[%emt 0:10:03]} 39. Kxc2 {[%emt 0:00:05]} Nxc5 {[%emt 0:03:13]} 40. Ne7+ {[%emt 0:00:00]} Kf7 {[%emt 0:00:00]} 41. Nxf5 {[%emt 0:00:00]} Kf6 {[%emt 0:00:00]} 42. g4 {[%emt 0:00:00]} Rc8 {[%emt 0:00:00]} 43. Kd2 {[%emt 0:00:00]} Rc6 {[%emt 0:00:00]} 44. Ke3 {[%emt 0:00:00]} Re6+ {[%emt 0:00:00]} 45. Kf3 {[%emt 0:00:00]} b6 {[%emt 0:00:00]} 46. Rf4 {[%emt 0:00:00]} g5 {[%emt 0:00:00]} 47. Rd4 {[%emt 0:00:00]} Ke5 {[%emt 0:00:00]} 48. Rd1 {[%emt 0:00:00]} b5 {[%emt 0:00:00]} 49. Rd8 {[%emt 0:03:49]} Rb6 {[%emt 0:00:00]} 50. Ne3 {[%emt 0:01:34]} Ne6 {[%emt 0:00:49]} 51. Rd5+ {[%emt 0:00:43]} Kf6 {[%emt 0:00:01]} 52. Rf5+ {[%emt 0:00:45]} Kg7 {[%emt 0:00:02]} 53. Ke4 {[%emt 0:01:44]} Nf4 {[%emt 0:02:35]} 54. Rc5 {[%emt 0:02:42]} b4 {[%emt 0:01:35]} 55. Rc7+ {[%emt 0:02:36]} Kf8 {[%emt 0:01:26]} 56. axb4 {[%emt 0:00:28]} Rxb4+ {[%emt 0:00:09]} 57. Ke5 {[%emt 0:00:44]} Rb5+ {[%emt 0:00:16]} 58. Kd6 {[%emt 0:01:35]} Rb6+ {[%emt 0:00:32]} 59. Kc5 {[%emt 0:01:01]} Rb3 {[%emt 0:00:26]} 60. Rc8+ {[%emt 0:00:15]} Kf7 {[%emt 0:00:11]} 61. Nc4 {[%emt 0:00:38]} Ne6+ {[%emt 0:01:11]} 62. Kd5 {[%emt 0:00:57]} Kf6 {[%emt 0:01:18]} 63. Rh8 {[%emt 0:00:55]} Rd3+ {[%emt 0:01:00]} 64. Kc6 {[%emt 0:00:14]} Kg7 {[%emt 0:01:18]} 65. Re8 {[%emt 0:00:41]} Rc3 {[%emt 0:06:21]} 66. Kd6 {[%emt 0:01:17]} Rxc4 {[%emt 0:01:16]} 67. Re7+ {[%emt 0:00:19]} Kg8 {[%emt 0:01:12]} 68. Rxe6 {[%emt 0:00:20]} Rxg4 {[%emt 0:01:46]} 69. Ke5 {[%emt 0:00:40]} Kg7 {[%emt 0:03:59]} 70. Rg6+ {[%emt 0:00:13]} Kh7 {[%emt 0:00:21]} 71. Ra6 {[%emt 0:00:18]} Rb4 {[%emt 0:04:28]} 72. Kf6 {[%emt 0:00:24]} Rf4+ {[%emt 0:01:21]} 73. Ke5 {[%emt 0:00:19]} Kg7 {[%emt 0:00:35]} 74. Rg6+ {[%emt 0:00:11]} Kf7 {[%emt 0:00:35]} 75. Rxh6 {[%emt 0:00:20]} a3 {[%emt 0:00:07]} 76. Rh7+ {[%emt 0:00:50]} Kg8 {[%emt 0:00:08]} 77. Ra7 {[%emt 0:00:05]} Rf3 {[%emt 0:00:10]} 78. h6 {[%emt 0:00:36]} Kh8 {[%emt 0:00:14]} 79. Ke4 {[%emt 0:00:47]} g4 {[%emt 0:00:14]} 80. h7 {[%emt 0:00:38]} Rb3 {[%emt 0:00:32]} 81. Kf5 {[%emt 0:00:52]} g3 {[%emt 0:00:09]} 82. Kg6 {[%emt 0:00:17]} Rb6+ {[%emt 0:00:06]} 83. Kf7 {[%emt 0:00:50]} g2 {[%emt 0:00:19]} 84. Ra8+ {[%emt 0:00:10]} Kxh7 {[%emt 0:00:06]} 0-1

[Event "Polugaevsky Memorial 2019"]
[Site "Samara"]
[Date "2019.07.10"]
[Round "1.10"]
[White "Kuderinov, Kirill"]
[Black "Kopylov, Artem"]
[Result "1-0"]
[ECO "B80"]
[WhiteElo "2439"]
[BlackElo "1845"]
[Annotator "NA"]
[PlyCount "97"]
[EventDate "2019.07.10"]
[EventType "swiss"]
[EventCountry "RUS"]
[SourceTitle "playchess.com"]
[Source "ChessBase"]
[SourceQuality "1"]
[TimeControl "5400+30"]

1. e4 c5 {[%emt 0:00:00]} 2. Nf3 {[%emt 0:00:00]} e6 {[%emt 0:00:00]} 3. d4 {[%emt 0:00:21]} cxd4 {[%emt 0:00:00]} 4. Nxd4 {[%emt 0:00:03]} Nf6 {[%emt 0:00:00]} 5. Nc3 {[%emt 0:00:10]} d6 {[%emt 0:00:02]} 6. Be3 {[%emt 0:02:26]} Be7 {[%emt 0:00:12]} 7. g4 {[%emt 0:01:31]} h6 {[%emt 0:07:06]} 8. Bb5+ {[%emt 0:06:45]} Bd7 {[%emt 0:02:29]} 9. Qe2 {[%emt 0:03:10]} Nc6 {[%emt 0:10:30]} 10. O-O-O {[%emt 0:01:59]} a6 {[%emt 0:11:20]} 11. Bxc6 {[%emt 0:07:55]} bxc6 {[%emt 0:14:24]} 12. h4 {[%emt 0:02:50]} g6 {[%emt 0:10:35]} 13. e5 {[%emt 0:04:11]} Nd5 {[%emt 0:01:29]} 14. exd6 {[%emt 0:01:34]} Nxc3 {[%emt 0:09:13]} 15. bxc3 {[%emt 0:00:07]} Bxd6 {[%emt 0:00:04]} 16. Nb3 {[%emt 0:00:11]} Qe7 {[%emt 0:02:42]} 17. Qc4 {[%emt 0:03:25]} Rb8 18. Nc5 {[%emt 0:04:57]} e5 {[%emt 0:13:06]} 19. Nxa6 {[%emt 0:13:13]} Rb5 {[%emt 0:06:00]} 20. Rxd6 {[%emt 0:07:56]} Qxd6 {[%emt 0:00:12]} 21. Bc5 {[%emt 0:00:07]} Rxc5 {[%emt 0:04:14]} 22. Nxc5 {[%emt 0:00:10]} Be6 {[%emt 0:02:03]} 23. Nxe6 {[%emt 0:00:54]} Qxe6 {[%emt 0:00:28]} 24. Qxe6+ {[%emt 0:00:58]} fxe6 {[%emt 0:00:05]} 25. Re1 {[%emt 0:11:20]} Rf8 {[%emt 0:00:09]} 26. Rxe5 {[%emt 0:00:06]} Kd7 {[%emt 0:00:24]} 27. g5 {[%emt 0:01:11]} h5 {[%emt 0:02:16]} 28. Re4 {[%emt 0:00:10]} Rxf2 {[%emt 0:00:22]} 29. a4 {[%emt 0:00:03]} Rh2 {[%emt 0:02:29]} 30. Kb2 {[%emt 0:01:28]} Kc7 {[%emt 0:00:45]} 31. Kb3 {[%emt 0:00:41]} e5 {[%emt 0:01:01]} 32. a5 {[%emt 0:06:04]} Kb7 {[%emt 0:00:39]} 33. Kb4 {[%emt 0:01:41]} Rxc2 {[%emt 0:00:30]} 34. Rxe5 {[%emt 0:00:06]} Rh2 {[%emt 0:01:19]} 35. Re4 {[%emt 0:00:19]} Rb2+ {[%emt 0:00:17]} 36. Kc5 {[%emt 0:00:55]} Rb5+ {[%emt 0:00:10]} 37. Kd6 {[%emt 0:00:10]} Rxa5 {[%emt 0:00:51]} 38. Rb4+ {[%emt 0:00:21]} Kc8 {[%emt 0:00:45]} 39. Kxc6 {[%emt 0:00:14]} Re5 {[%emt 0:00:27]} 40. Rf4 {[%emt 0:00:00]} Re6+ {[%emt 0:00:00]} 41. Kd5 {[%emt 0:00:00]} Re3 {[%emt 0:00:00]} 42. c4 {[%emt 0:00:00]} Kc7 {[%emt 0:00:00]} 43. c5 {[%emt 0:00:00]} Re1 {[%emt 0:00:00]} 44. Rf7+ {[%emt 0:00:00]} Kc8 {[%emt 0:00:00]} 45. Kd6 {[%emt 0:00:00]} Rd1+ {[%emt 0:00:00]} 46. Ke5 {[%emt 0:00:00]} Rh1 {[%emt 0:00:00]} 47. Rf4 {[%emt 0:00:00]} Rg1 {[%emt 0:00:00]} 48. Kf6 {[%emt 0:00:00]} Rg4 {[%emt 0:00:00]} 49. Rf1 {[%emt 0:00:00]} 1-0

[Event "Polugaevsky Memorial 2019"]
[Site "Samara"]
[Date "2019.07.11"]
[Round "2.1"]
[White "Gitelson, Arkady"]
[Black "Goganov, Aleksey"]
[Result "0-1"]
[ECO "B47"]
[WhiteElo "2191"]
[BlackElo "2561"]
[Annotator "ChessBase"]
[PlyCount "134"]
[EventDate "2019.07.10"]
[EventType "swiss"]
[EventCountry "RUS"]
[SourceTitle "playchess.com"]
[Source "ChessBase"]
[SourceQuality "1"]
[TimeControl "5400+30"]

1. e4 {[%emt 0:10:41]} c5 {[%emt 0:00:00]} 2. Nf3 {[%emt 0:00:04]} e6 {[%emt 0:00:00]} 3. d4 {[%emt 0:00:03]} cxd4 {[%emt 0:00:00]} 4. Nxd4 {[%emt 0:00:02]} Nc6 {[%emt 0:00:00]} 5. Nc3 {[%emt 0:00:04]} Qc7 {[%emt 0:00:05]} 6. g3 {[%emt 0:00:05]} a6 {[%emt 0:00:39]} 7. Bg2 {[%emt 0:00:05]} Nf6 {[%emt 0:06:03]} 8. O-O {[%emt 0:00:12]} h5 {[%emt 0:00:32]} 9. Nf3 {[%emt 0:00:38]} Be7 {[%emt 0:02:57]} 10. Re1 {[%emt 0:05:33]} d6 {[%emt 0:00:27]} 11. Bf4 {[%emt 0:03:06]} Ne5 {[%emt 0:00:12]} 12. Bxe5 {[%emt 0:17:13]} dxe5 {[%emt 0:00:18]} 13. Qd2 {[%emt 0:00:03]} b5 {[%emt 0:03:21]} 14. a3 {[%emt 0:04:21]} Bb7 {[%emt 0:00:42]} 15. Rad1 {[%emt 0:01:03]} Rd8 {[%emt 0:07:25]} 16. Qe3 {[%emt 0:03:08]} O-O {[%emt 0:05:08]} 17. Rd3 {[%emt 0:08:53]} Ng4 {[%emt 0:17:29]} 18. Qd2 {[%emt 0:00:30]} Bc5 {[%emt 0:00:11]} 19. Rf1 {[%emt 0:05:50]} f5 {[%emt 0:11:37]} 20. Ng5 {[%emt 0:10:03]} Qe7 {[%emt 0:06:54]} 21. h4 {[%emt 0:15:32]} f4 {[%emt 0:03:21]} 22. gxf4 {[%emt 0:00:09]} Rxd3 {[%emt 0:01:36]} 23. Qxd3 {[%emt 0:00:05]} Rxf4 {[%emt 0:01:11]} 24. Nd1 {[%emt 0:02:20]} Nf6 {[%emt 0:04:37]} 25. Qb3 {[%emt 0:04:01]} Rg4 {[%emt 0:02:18]} 26. Re1 {[%emt 0:02:52]} Nd5 {[%emt 0:02:59]} 27. Ne3 {[%emt 0:03:46]} Nxe3 {[%emt 0:01:50]} 28. fxe3 {[%emt 0:00:01]} Rxh4 {[%emt 0:00:55]} 29. Nxe6 {[%emt 0:01:23]} Kh7 {[%emt 0:00:08]} 30. Rf1 {[%emt 0:01:37]} Bxe3+ {[%emt 0:01:35]} 31. Qxe3 {[%emt 0:00:02]} Qxe6 {[%emt 0:00:06]} 32. Rf5 {[%emt 0:00:05]} Qg6 {[%emt 0:04:52]} 33. Rg5 {[%emt 0:01:12]} Qh6 {[%emt 0:00:14]} 34. Qg3 {[%emt 0:00:31]} Qb6+ {[%emt 0:02:23]} 35. Kf1 {[%emt 0:00:04]} Rf4+ {[%emt 0:01:46]} 36. Ke2 {[%emt 0:00:49]} g6 {[%emt 0:01:41]} 37. Rxe5 {[%emt 0:00:38]} Rf7 {[%emt 0:00:07]} 38. Bf3 {[%emt 0:01:02]} Qc7 {[%emt 0:02:39]} 39. c3 {[%emt 0:00:36]} Qc4+ {[%emt 0:00:08]} 40. Ke3 {[%emt 0:00:00]} Qf1 {[%emt 0:00:00]} 41. Re6 {[%emt 0:00:00]} Qc1+ {[%emt 0:00:00]} 42. Kd3 {[%emt 0:00:00]} Rg7 {[%emt 0:00:00]} 43. Qd6 {[%emt 0:00:00]} Qb1+ {[%emt 0:00:00]} 44. Ke3 {[%emt 0:00:00]} Qxb2 {[%emt 0:00:00]} 45. Qe5 {[%emt 0:00:00]} Qc1+ {[%emt 0:00:00]} 46. Ke2 {[%emt 0:00:00]} Bc8 {[%emt 0:00:00]} 47. Re7 {[%emt 0:00:00]} Qh6 {[%emt 0:00:00]} 48. Re8 {[%emt 0:00:00]} Bd7 {[%emt 0:00:00]} 49. Rd8 {[%emt 0:00:00]} Qc1 {[%emt 0:01:58]} 50. Qf6 {[%emt 0:00:00]} Qb2+ {[%emt 0:01:08]} 51. Kf1 {[%emt 0:00:00]} Qxa3 {[%emt 0:01:01]} 52. Ra8 {[%emt 0:00:00]} Qc1+ {[%emt 0:01:46]} 53. Kg2 {[%emt 0:00:00]} Qd2+ {[%emt 0:00:04]} 54. Kg1 {[%emt 0:00:10]} Qe1+ {[%emt 0:00:55]} 55. Kg2 {[%emt 0:00:12]} h4 {[%emt 0:06:09]} 56. Qf8 {[%emt 0:00:51]} Qg3+ {[%emt 0:01:31]} 57. Kh1 {[%emt 0:01:11]} Qe1+ {[%emt 0:00:04]} 58. Kg2 {[%emt 0:00:16]} Qg3+ {[%emt 0:00:03]} 59. Kh1 {[%emt 0:00:06]} Kh6 {[%emt 0:00:17]} 60. Qh8+ {[%emt 0:01:40]} Kg5 {[%emt 0:00:17]} 61. Qd8+ {[%emt 0:06:26]} Kf4 {[%emt 0:00:19]} 62. Qf6+ {[%emt 0:00:19]} Bf5 {[%emt 0:00:47]} 63. Bg2 {[%emt 0:00:48]} Rd7 {[%emt 0:00:22]} 64. Rd8 {[%emt 0:00:38]} h3 {[%emt 0:00:47]} 65. Bf1 {[%emt 0:00:24]} Qf3+ {[%emt 0:01:07]} 66. Kg1 {[%emt 0:00:23]} h2+ {[%emt 0:00:11]} 67. Kxh2 {[%emt 0:00:04]} Rh7+ {[%emt 0:00:06]} 0-1

[Event "Polugaevsky Memorial 2019"]
[Site "Samara"]
[Date "2019.07.11"]
[Round "2.2"]
[White "Zhigalko, Andrey"]
[Black "Kulaev, Maxim"]
[Result "1/2-1/2"]
[ECO "D45"]
[WhiteElo "2549"]
[BlackElo "2177"]
[Annotator "ChessBase"]
[PlyCount "96"]
[EventDate "2019.07.10"]
[EventType "swiss"]
[EventCountry "RUS"]
[SourceTitle "playchess.com"]
[Source "ChessBase"]
[SourceQuality "1"]
[TimeControl "5400+30"]

1. d4 {[%emt 0:00:00]} e6 {[%emt 0:00:00]} 2. c4 {[%emt 0:00:01]} d5 {[%emt 0:00:10]} 3. Nc3 {[%emt 0:00:24]} c6 {[%emt 0:00:37]} 4. e3 {[%emt 0:02:47]} Nf6 {[%emt 0:01:59]} 5. Nf3 {[%emt 0:00:53]} Nbd7 {[%emt 0:00:46]} 6. Be2 {[%emt 0:02:01]} dxc4 {[%emt 0:02:02]} 7. a4 {[%emt 0:00:08]} Bd6 {[%emt 0:08:25]} 8. Nd2 {[%emt 0:00:47]} e5 {[%emt 0:14:35]} 9. Nxc4 {[%emt 0:00:06]} Bc7 {[%emt 0:00:16]} 10. b3 {[%emt 0:11:42]} O-O {[%emt 0:07:04]} 11. Ba3 {[%emt 0:00:32]} Re8 {[%emt 0:00:11]} 12. O-O {[%emt 0:18:28]} e4 {[%emt 0:14:41]} 13. Bd6 {[%emt 0:13:40]} Nb6 {[%emt 0:10:17]} 14. Bxc7 {[%emt 0:07:11]} Qxc7 {[%emt 0:00:01]} 15. Nxb6 {[%emt 0:02:28]} Qxb6 {[%emt 0:01:25]} 16. Bc4 {[%emt 0:03:48]} Bf5 {[%emt 0:03:23]} 17. f3 {[%emt 0:04:22]} exf3 {[%emt 0:04:04]} 18. Qxf3 {[%emt 0:04:19]} Bg6 {[%emt 0:00:01]} 19. a5 {[%emt 0:09:12]} Qb4 {[%emt 0:01:36]} 20. e4 {[%emt 0:01:19]} Bxe4 {[%emt 0:07:20]} 21. Nxe4 {[%emt 0:03:39]} Rxe4 {[%emt 0:00:09]} 22. Bxf7+ {[%emt 0:03:37]} Kh8 {[%emt 0:00:01]} 23. Bc4 {[%emt 0:00:15]} Rd8 {[%emt 0:02:10]} 24. Qg3 {[%emt 0:03:22]} Qd6 {[%emt 0:03:48]} 25. Qxd6 {[%emt 0:00:11]} Rxd6 {[%emt 0:00:01]} 26. Rae1 {[%emt 0:02:25]} Rdxd4 {[%emt 0:05:14]} 27. Rxe4 {[%emt 0:00:10]} Rxe4 {[%emt 0:00:05]} 28. Rd1 {[%emt 0:01:45]} g5 {[%emt 0:07:00]} 29. Rd6 {[%emt 0:02:10]} Kg7 {[%emt 0:01:33]} 30. a6 {[%emt 0:00:20]} Re1+ {[%emt 0:03:04]} 31. Bf1 {[%emt 0:00:08]} bxa6 {[%emt 0:01:11]} 32. Rxc6 {[%emt 0:00:13]} Ne4 {[%emt 0:01:21]} 33. Re6 {[%emt 0:01:49]} Kf7 {[%emt 0:00:33]} 34. Re5 {[%emt 0:00:08]} Kf6 {[%emt 0:00:23]} 35. Re8 {[%emt 0:00:19]} Kf7 {[%emt 0:00:56]} 36. Rd8 {[%emt 0:00:58]} Rb1 {[%emt 0:00:44]} 37. Rd4 {[%emt 0:01:16]} Nc5 {[%emt 0:00:41]} 38. b4 {[%emt 0:01:06]} Ne6 {[%emt 0:00:30]} 39. Re4 {[%emt 0:00:40]} Kf6 {[%emt 0:00:18]} 40. Kf2 {[%emt 0:00:00]} Rb2+ {[%emt 0:00:00]} 41. Kf3 {[%emt 0:00:00]} Rb3+ {[%emt 0:00:00]} 42. Kf2 {[%emt 0:00:00]} Rb2+ {[%emt 0:00:00]} 43. Kf3 {[%emt 0:00:00]} h5 {[%emt 0:00:00]} 44. Bxa6 {[%emt 0:00:00]} g4+ {[%emt 0:00:00]} 45. Kg3 {[%emt 0:00:00]} Ng7 {[%emt 0:00:00]} 46. Bc8 {[%emt 0:00:00]} Rc2 {[%emt 0:00:00]} 47. Bd7 {[%emt 0:00:00]} Rd2 {[%emt 0:00:00]} 48. Bc8 {[%emt 0:00:00]} Rc2 {[%emt 0:00:00]} 1/2-1/2

[Event "Polugaevsky Memorial 2019"]
[Site "Samara"]
[Date "2019.07.11"]
[Round "2.3"]
[White "Kavyev, Ruslan"]
[Black "Ovetchkin, Roman"]
[Result "0-1"]
[ECO "B15"]
[WhiteElo "2167"]
[BlackElo "2538"]
[Annotator "ChessBase"]
[PlyCount "96"]
[EventDate "2019.07.10"]
[EventType "swiss"]
[EventCountry "RUS"]
[SourceTitle "playchess.com"]
[Source "ChessBase"]
[SourceQuality "1"]
[TimeControl "5400+30"]

1. e4 {[%emt 0:00:00]} c6 {[%emt 0:00:15]} 2. d4 {[%emt 0:00:00]} d5 {[%emt 0:00:04]} 3. Nd2 {[%emt 0:00:00]} dxe4 {[%emt 0:00:08]} 4. Nxe4 {[%emt 0:00:00]} Nf6 {[%emt 0:00:08]} 5. Nxf6+ {[%emt 0:00:00]} exf6 {[%emt 0:00:05]} 6. c3 {[%emt 0:00:00]} Bd6 {[%emt 0:00:06]} 7. Qc2 {[%emt 0:00:00]} O-O {[%emt 0:00:08]} 8. Bd3 {[%emt 0:00:00]} Re8+ {[%emt 0:00:06]} 9. Ne2 {[%emt 0:00:02]} f5 {[%emt 0:06:43]} 10. Bxf5 {[%emt 0:10:34]} Bxf5 {[%emt 0:01:10]} 11. Qxf5 {[%emt 0:00:02]} Nd7 {[%emt 0:00:12]} 12. Qf3 {[%emt 0:03:45]} Qe7 {[%emt 0:02:54]} 13. Be3 {[%emt 0:01:39]} Nb6 {[%emt 0:00:39]} 14. O-O {[%emt 0:04:46]} Nc4 {[%emt 0:00:32]} 15. Ng3 {[%emt 0:02:17]} Bxg3 {[%emt 0:06:45]} 16. Qxg3 {[%emt 0:00:19]} Nxb2 {[%emt 0:03:41]} 17. Rae1 {[%emt 0:06:40]} Nc4 {[%emt 0:04:32]} 18. d5 {[%emt 0:04:36]} Nxe3 {[%emt 0:48:29]} 19. Rxe3 {[%emt 0:01:07]} Qc5 {[%emt 0:02:16]} 20. dxc6 {[%emt 0:01:48]} Qxc6 {[%emt 0:00:10]} 21. Rfe1 {[%emt 0:00:25]} Rxe3 {[%emt 0:01:01]} 22. Qxe3 {[%emt 0:00:07]} h6 {[%emt 0:01:24]} 23. h3 {[%emt 0:02:33]} b6 {[%emt 0:03:26]} 24. Qd4 {[%emt 0:02:55]} Qc7 {[%emt 0:00:33]} 25. Qa4 {[%emt 0:01:05]} g6 {[%emt 0:03:12]} 26. Qd4 {[%emt 0:02:08]} Qd8 {[%emt 0:01:21]} 27. Qe3 {[%emt 0:05:41]} h5 {[%emt 0:00:49]} 28. Qe7 {[%emt 0:01:00]} Qd2 {[%emt 0:01:17]} 29. a4 {[%emt 0:08:43]} Qxc3 {[%emt 0:00:43]} 30. Rd1 {[%emt 0:00:07]} Qc2 {[%emt 0:04:52]} 31. Rd4 {[%emt 0:01:27]} Qc3 {[%emt 0:03:29]} 32. Qf6 {[%emt 0:00:29]} Re8 {[%emt 0:00:16]} 33. g3 {[%emt 0:00:59]} Qe1+ {[%emt 0:00:33]} 34. Kg2 {[%emt 0:00:47]} Qe5 {[%emt 0:00:13]} 35. Qc6 {[%emt 0:00:31]} Qxd4 {[%emt 0:01:07]} 36. Qxe8+ {[%emt 0:00:01]} Kg7 {[%emt 0:00:02]} 37. Qc6 {[%emt 0:00:09]} Qc5 {[%emt 0:00:38]} 38. Qd7 {[%emt 0:01:05]} a6 {[%emt 0:01:00]} 39. Qb7 {[%emt 0:00:00]} Qc4 {[%emt 0:00:31]} 40. Qd7 {[%emt 0:00:00]} b5 {[%emt 0:00:00]} 41. a5 {[%emt 0:00:00]} Qe4+ {[%emt 0:00:00]} 42. Kh2 {[%emt 0:00:00]} b4 {[%emt 0:00:00]} 43. Qa4 {[%emt 0:00:00]} Qd4 {[%emt 0:00:00]} 44. Qa2 {[%emt 0:00:00]} Qc3 {[%emt 0:00:00]} 45. Qe2 {[%emt 0:00:00]} Qc5 {[%emt 0:00:00]} 46. Qxa6 {[%emt 0:00:00]} Qxf2+ {[%emt 0:00:00]} 47. Kh1 b3 48. g4 {[%emt 0:00:00]} b2 {[%emt 0:00:00]} 0-1

[Event "Polugaevsky Memorial 2019"]
[Site "Samara"]
[Date "2019.07.11"]
[Round "2.4"]
[White "Utegaliyev, Azamat"]
[Black "Tunik, Sergey"]
[Result "1/2-1/2"]
[ECO "A11"]
[WhiteElo "2510"]
[BlackElo "2166"]
[Annotator "ChessBase"]
[PlyCount "128"]
[EventDate "2019.07.10"]
[EventType "swiss"]
[EventCountry "RUS"]
[SourceTitle "playchess.com"]
[Source "ChessBase"]
[SourceQuality "1"]
[TimeControl "5400+30"]

1. c4 {[%emt 0:07:08]} c6 {[%emt 0:00:00]} 2. Nf3 {[%emt 0:01:30]} d5 {[%emt 0:00:00]} 3. g3 {[%emt 0:02:12]} dxc4 {[%emt 0:00:21]} 4. Bg2 {[%emt 0:00:26]} Nd7 {[%emt 0:00:10]} 5. O-O {[%emt 0:00:43]} Ngf6 {[%emt 0:00:07]} 6. Qc2 {[%emt 0:07:26]} Nb6 {[%emt 0:00:21]} 7. a4 {[%emt 0:02:18]} a5 {[%emt 0:07:41]} 8. b3 {[%emt 0:02:55]} cxb3 {[%emt 0:04:04]} 9. Qxb3 {[%emt 0:00:06]} e6 {[%emt 0:00:57]} 10. d3 {[%emt 0:00:58]} Nbd5 {[%emt 0:07:28]} 11. Nbd2 {[%emt 0:00:22]} Be7 {[%emt 0:00:46]} 12. Nc4 {[%emt 0:00:42]} O-O {[%emt 0:01:06]} 13. Rb1 {[%emt 0:02:34]} b5 {[%emt 0:07:08]} 14. Nce5 {[%emt 0:04:02]} bxa4 {[%emt 0:07:16]} 15. Qc2 {[%emt 0:01:36]} Bd7 {[%emt 0:03:45]} 16. Ra1 {[%emt 0:01:51]} Qb6 {[%emt 0:06:15]} 17. Rxa4 {[%emt 0:06:21]} Rfb8 {[%emt 0:00:42]} 18. Bd2 {[%emt 0:00:29]} Bb4 {[%emt 0:05:12]} 19. Rfa1 {[%emt 0:20:13]} c5 {[%emt 0:05:07]} 20. R4a2 {[%emt 0:00:24]} Bb5 {[%emt 0:08:55]} 21. Nc4 {[%emt 0:13:39]} Bxc4 {[%emt 0:01:19]} 22. Qxc4 {[%emt 0:00:27]} h6 {[%emt 0:06:58]} 23. h3 {[%emt 0:02:28]} Nd7 {[%emt 0:04:03]} 24. Qc1 {[%emt 0:06:41]} Qb5 {[%emt 0:03:21]} 25. Nh2 {[%emt 0:03:30]} Rc8 {[%emt 0:03:45]} 26. Qc4 {[%emt 0:01:07]} Qc6 {[%emt 0:03:54]} 27. Nf1 {[%emt 0:00:04]} Ne5 {[%emt 0:01:56]} 28. Qc2 {[%emt 0:01:14]} c4 {[%emt 0:03:29]} 29. d4 {[%emt 0:01:26]} Nd7 {[%emt 0:01:15]} 30. e4 {[%emt 0:00:51]} N5b6 {[%emt 0:01:18]} 31. Ne3 {[%emt 0:00:37]} c3 {[%emt 0:01:56]} 32. Bc1 {[%emt 0:01:49]} Rab8 {[%emt 0:01:30]} 33. e5 {[%emt 0:02:13]} Nd5 {[%emt 0:01:17]} 34. Nxd5 {[%emt 0:01:11]} exd5 {[%emt 0:00:05]} 35. f4 {[%emt 0:00:01]} Nb6 {[%emt 0:02:33]} 36. f5 {[%emt 0:00:18]} Nc4 {[%emt 0:00:23]} 37. Bf4 {[%emt 0:03:14]} Nd2 {[%emt 0:01:14]} 38. Re1 {[%emt 0:01:07]} Qc4 {[%emt 0:00:41]} 39. e6 {[%emt 0:01:52]} f6 {[%emt 0:00:37]} 40. e7 {[%emt 0:00:00]} Qxd4+ {[%emt 0:00:00]} 41. Be3 {[%emt 0:00:00]} Qc4 {[%emt 0:00:00]} 42. Bf4 {[%emt 0:00:00]} Bxe7 {[%emt 0:00:00]} 43. Rxe7 {[%emt 0:00:00]} Rb1+ {[%emt 0:00:00]} 44. Kh2 {[%emt 0:00:00]} Nf1+ {[%emt 0:00:00]} 45. Bxf1 {[%emt 0:00:00]} Qxf1 {[%emt 0:00:00]} 46. Qg2 {[%emt 0:00:00]} c2 {[%emt 0:00:00]} 47. h4 {[%emt 0:00:00]} Qxg2+ {[%emt 0:01:19]} 48. Kxg2 {[%emt 0:00:00]} c1=Q {[%emt 0:00:44]} 49. Bxc1 {[%emt 0:00:00]} Rcxc1 {[%emt 0:01:26]} 50. Rxa5 {[%emt 0:00:00]} Rb2+ {[%emt 0:00:59]} 51. Kf3 {[%emt 0:00:00]} h5 {[%emt 0:00:31]} 52. Ra8+ {[%emt 0:00:00]} Kh7 {[%emt 0:00:06]} 53. Raa7 {[%emt 0:00:00]} Rc3+ {[%emt 0:01:30]} 54. Re3 {[%emt 0:00:00]} d4 {[%emt 0:00:10]} 55. Rxc3 {[%emt 0:00:00]} dxc3 {[%emt 0:00:04]} 56. Rc7 {[%emt 0:00:00]} Rc2 {[%emt 0:00:14]} 57. Rc8 {[%emt 0:05:21]} Rc1 {[%emt 0:00:26]} 58. Kg2 {[%emt 0:01:02]} g5 {[%emt 0:01:39]} 59. hxg5 {[%emt 0:02:07]} fxg5 {[%emt 0:00:07]} 60. Rc7+ {[%emt 0:00:05]} Kh6 {[%emt 0:00:51]} 61. f6 {[%emt 0:00:14]} Kg6 {[%emt 0:00:23]} 62. f7 {[%emt 0:00:04]} Kg7 {[%emt 0:00:07]} 63. Kh2 {[%emt 0:00:04]} h4 {[%emt 0:01:15]} 64. gxh4 {[%emt 0:00:32]} gxh4 {[%emt 0:00:05]} 1/2-1/2